Workbook

Sheet Finanšu pārskats
B2: GADA FINANŠU PĀRSKATS | K2: 2016 | N2: Atlasiet pārskata gadu šūnā L2
B3: JŪSU UZŅĒMUMA NOSAUKUMS | N3: Lai rediģētu datus, atlasiet finanšu datu ievades lapu
B5: GALVENĀ METRIKA | D5: Noklikšķiniet, lai mainītu pārskata galveno metriku
B7: =Aprēķini!B8 -> IEŅĒMUMI | D7: =Aprēķini!B9 -> NETO PEĻŅA | F7: =Aprēķini!B10 -> PROCENTI | H7: =Aprēķini!B11 -> NOLIETOJUMS | J7: =Aprēķini!B12 -> DARBĪBAS PEĻŅA
B8: =IFERROR(Aprēķini!G8,"") -> 180,583.88EUR | D8: =IFERROR(Aprēķini!G9,"") -> 67,474.85EUR | F8: =IFERROR(Aprēķini!G10,"") -> 3,789.47EUR | H8: =IFERROR(Aprēķini!G11,"") -> 5,546.88EUR | J8: =IFERROR(Aprēķini!G12,"") -> 73,425.99EUR
B9: =Aprēķini!H8 -> 0% | D9: =Aprēķini!H9 -> 2% | F9: =Aprēķini!H10 -> 14% | H9: =Aprēķini!H11 -> 9% | J9: =Aprēķini!H12 -> -5%
B13: VISA METRIKA | D13: Nemodificējiet tālāk sniegto informāciju. Noklikšķiniet, lai ievadītu finanšu datus
B15: METRIKA | D15: ="PĀRSKATA GADS ("&AtlasītaisGads&")" -> PĀRSKATA GADS (2016) | F15: ="IEPRIEKŠĒJAIS GADS ("&AtlasītaisGads-1&")" -> IEPRIEKŠĒJAIS GADS (2015) | H15: IZMAIŅAS % | I15: =CONCATENATE(Gadi," GADU TENDENCE") -> 5 GADU TENDENCE
B16: =Aprēķini!B15 -> IEŅĒMUMI | D16: =IF($B16="","",Aprēķini!G15) -> 180,583.88EUR | F16: =IF($B16="","",Aprēķini!F15) -> 180,026.63EUR | H16: =IFERROR(D16/F16-1,"") -> 0%
B17: =Aprēķini!B16 -> DARBĪBAS IZMAKSAS | D17: =IF($B17="","",Aprēķini!G16) -> 94,419.45EUR | F17: =IF($B17="","",Aprēķini!F16) -> 80,883.33EUR | H17: 17%
B18: =Aprēķini!B17 -> DARBĪBAS PEĻŅA | D18: =IF($B18="","",Aprēķini!G17) -> 73,425.99EUR | F18: =IF($B18="","",Aprēķini!F17) -> 77,317.83EUR | H18: -5%
B19: =Aprēķini!B18 -> NOLIETOJUMS | D19: =IF($B19="","",Aprēķini!G18) -> 5,546.88EUR | F19: =IF($B19="","",Aprēķini!F18) -> 5,068.42EUR | H19: 9%
B20: =Aprēķini!B19 -> PROCENTI | D20: =IF($B20="","",Aprēķini!G19) -> 3,789.47EUR | F20: =IF($B20="","",Aprēķini!F19) -> 3,338.30EUR | H20: 14%
B21: =Aprēķini!B20 -> NETO PEĻŅA | D21: =IF($B21="","",Aprēķini!G20) -> 67,474.85EUR | F21: =IF($B21="","",Aprēķini!F20) -> 66,272.10EUR | H21: 2%
B22: =Aprēķini!B21 -> NODOKLIS | D22: =IF($B22="","",Aprēķini!G21) -> 31,408.25EUR | F22: =IF($B22="","",Aprēķini!F21) -> 29,424.53EUR | H22: 7%
B23: =Aprēķini!B22 -> PEĻŅA PĒC NODOKĻA | D23: =IF($B23="","",Aprēķini!G22) -> 50,247.68EUR | F23: =IF($B23="","",Aprēķini!F22) -> 42,438.20EUR | H23: 18%
B24: =Aprēķini!B23 -> 1. METRIKA | D24: =IF($B24="","",Aprēķini!G23) -> 19.96EUR | F24: =IF($B24="","",Aprēķini!F23) -> 16.78EUR | H24: 19%
B25: =Aprēķini!B24 -> 2. METRIKA | D25: =IF($B25="","",Aprēķini!G24) -> 26.01EUR | F25: =IF($B25="","",Aprēķini!F24) -> 21.84EUR | H25: 19%
B26: =Aprēķini!B25 -> 3. METRIKA | D26: =IF($B26="","",Aprēķini!G25) -> 31.08EUR | F26: =IF($B26="","",Aprēķini!F25) -> 26.39EUR | H26: 18%
B27: =Aprēķini!B26 -> 4. METRIKA | D27: =IF($B27="","",Aprēķini!G26) -> 14.92EUR | F27: =IF($B27="","",Aprēķini!F26) -> 14.59EUR | H27: 2%
B28: =Aprēķini!B27 -> 5. METRIKA | D28: =IF($B28="","",Aprēķini!G27) -> 1.03EUR | F28: =IF($B28="","",Aprēķini!F27) -> 1.00EUR | H28: 3%
B29: =Aprēķini!B28 -> 6. METRIKA | D29: =IF($B29="","",Aprēķini!G28) -> 0.34EUR | F29: =IF($B29="","",Aprēķini!F28) -> 0.30EUR | H29: 13%
B30: =Aprēķini!B29 ->  | D30: =IF($B30="","",Aprēķini!G29) ->  | F30: =IF($B30="","",Aprēķini!F29) -> 
B31: =Aprēķini!B30 ->  | D31: =IF($B31="","",Aprēķini!G30) ->  | F31: =IF($B31="","",Aprēķini!F30) -> 
B32: =Aprēķini!B31 ->  | D32: =IF($B32="","",Aprēķini!G31) ->  | F32: =IF($B32="","",Aprēķini!F31) -> 
B33: =Aprēķini!B32 ->  | D33: =IF($B33="","",Aprēķini!G32) ->  | F33: =IF($B33="","",Aprēķini!F32) -> 
B34: =Aprēķini!B33 ->  | D34: =IF($B34="","",Aprēķini!G33) ->  | F34: =IF($B34="","",Aprēķini!F33) -> 
B35: =Aprēķini!B34 ->  | D35: =IF($B35="","",Aprēķini!G34) ->  | F35: =IF($B35="","",Aprēķini!F34) -> 
B36: =Aprēķini!B35 ->  | D36: =IF($B36="","",Aprēķini!G35) ->  | F36: =IF($B36="","",Aprēķini!F35) -> 
B37: =Aprēķini!B36 ->  | D37: =IF($B37="","",Aprēķini!G36) ->  | F37: =IF($B37="","",Aprēķini!F36) -> 
B38: =Aprēķini!B37 ->  | D38: =IF($B38="","",Aprēķini!G37) ->  | F38: =IF($B38="","",Aprēķini!F37) -> 
B39: =Aprēķini!B38 ->  | D39: =IF($B39="","",Aprēķini!G38) ->  | F39: =IF($B39="","",Aprēķini!F38) -> 
B40: =Aprēķini!B39 ->  | D40: =IF($B40="","",Aprēķini!G39) ->  | F40: =IF($B40="","",Aprēķini!F39) -> 

Sheet Finanšu datu ievade
B2: FINANŠU DATU IEVADE
B3: VARAT DEFINĒT PAT LĪDZ 25 GALVENĀS METRIKAS VIENUMIEM PAR 7 GADIEM
B4: Noklikšķiniet, lai skatīt finanšu pārskatu
B5: METRIKAS NOSAUKUMS | C5: 2010 | D5: 2011 | E5: 2012 | F5: 2013 | G5: 2014 | H5: 2015 | I5: 2016
B6: IEŅĒMUMI | C6: 125,000.00EUR | D6: 134,137.45EUR | E6: 142,728.38EUR | F6: 150,687.46EUR | G6: 165,044.56EUR | H6: 180,026.63EUR | I6: 180,583.88EUR
B7: DARBĪBAS IZMAKSAS | C7: 65,000.00EUR | D7: 70,962.31EUR | E7: 75,924.86EUR | F7: 78,901.27EUR | G7: 81,674.37EUR | H7: 80,883.33EUR | I7: 94,419.45EUR
B8: DARBĪBAS PEĻŅA | C8: 60,000.00EUR | D8: 64,207.30EUR | E8: 68,857.69EUR | F8: 75,643.25EUR | G8: 76,755.26EUR | H8: 77,317.83EUR | I8: 73,425.99EUR
B9: NOLIETOJUMS | C9: 4,500.00EUR | D9: 4,517.77EUR | E9: 4,656.92EUR | F9: 4,974.21EUR | G9: 5,024.11EUR | H9: 5,068.42EUR | I9: 5,546.88EUR
B10: PROCENTI | C10: 2,500.00EUR | D10: 2,745.82EUR | E10: 2,893.11EUR | F10: 3,136.12EUR | G10: 3,148.53EUR | H10: 3,338.30EUR | I10: 3,789.47EUR
B11: NETO PEĻŅA | C11: 54,000.00EUR | D11: 54,761.08EUR | E11: 55,860.81EUR | F11: 59,747.95EUR | G11: 61,483.59EUR | H11: 66,272.10EUR | I11: 67,474.85EUR
B12: NODOKLIS | C12: 22,000.00EUR | D12: 23,920.54EUR | E12: 25,576.74EUR | F12: 27,498.86EUR | G12: 28,335.67EUR | H12: 29,424.53EUR | I12: 31,408.25EUR
B13: PEĻŅA PĒC NODOKĻA | C13: 32,000.00EUR | D13: 34,943.49EUR | E13: 38,418.53EUR | F13: 39,895.05EUR | G13: 40,607.73EUR | H13: 42,438.20EUR | I13: 50,247.68EUR
B14: 1. METRIKA | C14: 12.80EUR | D14: 12.81EUR | E14: 13.78EUR | F14: 14.29EUR | G14: 15.57EUR | H14: 16.78EUR | I14: 19.96EUR
B15: 2. METRIKA | C15: 18.20EUR | D15: 18.59EUR | E15: 19.22EUR | F15: 20.17EUR | G15: 20.48EUR | H15: 21.84EUR | I15: 26.01EUR
B16: 3. METRIKA | C16: 19.10EUR | D16: 20.55EUR | E16: 21.87EUR | F16: 23.19EUR | G16: 24.67EUR | H16: 26.39EUR | I16: 31.08EUR
B17: 4. METRIKA | C17: 12.10EUR | D17: 12.21EUR | E17: 12.59EUR | F17: 13.70EUR | G17: 13.76EUR | H17: 14.59EUR | I17: 14.92EUR
B18: 5. METRIKA | C18: 0.75EUR | D18: 0.79EUR | E18: 0.85EUR | F18: 0.89EUR | G18: 0.91EUR | H18: 1.00EUR | I18: 1.03EUR
B19: 6. METRIKA | C19: 0.23EUR | D19: 0.25EUR | E19: 0.27EUR | F19: 0.28EUR | G19: 0.29EUR | H19: 0.30EUR | I19: 0.34EUR

Sheet Galvenās metrikas iestatījumi
B2: ŠEIT DEFINĒJIET GALVENO METRIKU
B3: ATLASIET PAT LĪDZ 5 GALVENĀS METRIKAS VIENUMIEM, KURUS RĀDĪT PĀRSKATA AUGŠDAĻĀ
B4: Noklikšķiniet, lai skatīt finanšu pārskatu
B5: 1 | C5: IEŅĒMUMI | E5: =IF(ISBLANK(C5),"← Nolaižamajā sarakstā izvēlieties vērtību",IF(COUNTIF($C$5:C5,C5)>1,"Vērtību "&C5&" esat izvēlējies vairāk kā vienu reizi.","")) -> 
B6: 2 | C6: NETO PEĻŅA | E6: =IF(ISBLANK(C6),"← Nolaižamajā sarakstā izvēlieties vērtību",IF(COUNTIF($C$5:C6,C6)>1,"Vērtību "&C6&" esat izvēlējies vairāk kā vienu reizi.","")) -> 
B7: 3 | C7: PROCENTI | E7: =IF(ISBLANK(C7),"← Nolaižamajā sarakstā izvēlieties vērtību",IF(COUNTIF($C$5:C7,C7)>1,"Vērtību "&C7&" esat izvēlējies vairāk kā vienu reizi.","")) -> 
B8: 4 | C8: NOLIETOJUMS | E8: =IF(ISBLANK(C8),"← Nolaižamajā sarakstā izvēlieties vērtību",IF(COUNTIF($C$5:C8,C8)>1,"Vērtību "&C8&" esat izvēlējies vairāk kā vienu reizi.","")) -> 
B9: 5 | C9: DARBĪBAS PEĻŅA | E9: =IF(ISBLANK(C9),"← Nolaižamajā sarakstā izvēlieties vērtību",IF(COUNTIF($C$5:C9,C9)>1,"Vērtību "&C9&" esat izvēlējies vairāk kā vienu reizi.","")) -> 

Sheet Aprēķini (hidden)
A1: Šī darblapa tiek izmantota finanšu pārskata aprēķiniem, to vajadzētu atstāt paslēptu.
D2: Pozīcija
B3: Šis gads | C3: =AtlasītaisGads -> 2016 | D3: =MATCH(C3,sarGadi,0)+1 -> 8
B4: Iepriekšējais gads | C4: =C3-1 -> 2015 | D4: =MATCH(C4,sarGadi,0)+1 -> 7
B6: Pozīcija | C6: =MATCH(C7,sarGadi,0)+1 -> 4 | D6: =MATCH(D7,sarGadi,0)+1 -> 5 | E6: =MATCH(E7,sarGadi,0)+1 -> 6 | F6: =MATCH(F7,sarGadi,0)+1 -> 7 | G6: =MATCH(G7,sarGadi,0)+1 -> 8 | I6: =COUNT(C6:G6) -> 5
B7: Galvenā metrika | C7: =D7-1 -> 2012 | D7: =E7-1 -> 2013 | E7: =F7-1 -> 2014 | F7: =G7-1 -> 2015 | G7: =C3 -> 2016
A8: =MATCH(B8,'Finanšu datu ievade'!$B$6:$B$30,0) -> 1 | B8: =IF('Galvenās metrikas iestatījumi'!C5="","",'Galvenās metrikas iestatījumi'!C5) -> IEŅĒMUMI | C8: =IFERROR(INDEX('Finanšu datu ievade'!$B$6:$I$30,$A8,C$6),NA()) -> 142728.38 | D8: =IFERROR(INDEX('Finanšu datu ievade'!$B$6:$I$30,$A8,D$6),NA()) -> 150687.46 | E8: =IFERROR(INDEX('Finanšu datu ievade'!$B$6:$I$30,$A8,E$6),NA()) -> 165044.56 | F8: =IFERROR(INDEX('Finanšu datu ievade'!$B$6:$I$30,$A8,F$6),NA()) -> 180026.63 | G8: =IFERROR(INDEX('Finanšu datu ievade'!$B$6:$I$30,$A8,G$6),NA()) -> 180583.88 | H8: =IFERROR(G8/F8-1,"") -> 0%
A9: =MATCH(B9,'Finanšu datu ievade'!$B$6:$B$30,0) -> 6 | B9: =IF('Galvenās metrikas iestatījumi'!C6="","",'Galvenās metrikas iestatījumi'!C6) -> NETO PEĻŅA | C9: =IFERROR(INDEX('Finanšu datu ievade'!$B$6:$I$30,$A9,C$6),NA()) -> 55860.81 | D9: =IFERROR(INDEX('Finanšu datu ievade'!$B$6:$I$30,$A9,D$6),NA()) -> 59747.95 | E9: =IFERROR(INDEX('Finanšu datu ievade'!$B$6:$I$30,$A9,E$6),NA()) -> 61483.59 | F9: =IFERROR(INDEX('Finanšu datu ievade'!$B$6:$I$30,$A9,F$6),NA()) -> 66272.1 | G9: =IFERROR(INDEX('Finanšu datu ievade'!$B$6:$I$30,$A9,G$6),NA()) -> 67474.85 | H9: =IFERROR(G9/F9-1,"") -> 2%
A10: =MATCH(B10,'Finanšu datu ievade'!$B$6:$B$30,0) -> 5 | B10: =IF('Galvenās metrikas iestatījumi'!C7="","",'Galvenās metrikas iestatījumi'!C7) -> PROCENTI | C10: =IFERROR(INDEX('Finanšu datu ievade'!$B$6:$I$30,$A10,C$6),NA()) -> 2893.11 | D10: =IFERROR(INDEX('Finanšu datu ievade'!$B$6:$I$30,$A10,D$6),NA()) -> 3136.12 | E10: =IFERROR(INDEX('Finanšu datu ievade'!$B$6:$I$30,$A10,E$6),NA()) -> 3148.53 | F10: =IFERROR(INDEX('Finanšu datu ievade'!$B$6:$I$30,$A10,F$6),NA()) -> 3338.3 | G10: =IFERROR(INDEX('Finanšu datu ievade'!$B$6:$I$30,$A10,G$6),NA()) -> 3789.47 | H10: 14%
A11: =MATCH(B11,'Finanšu datu ievade'!$B$6:$B$30,0) -> 4 | B11: =IF('Galvenās metrikas iestatījumi'!C8="","",'Galvenās metrikas iestatījumi'!C8) -> NOLIETOJUMS | C11: =IFERROR(INDEX('Finanšu datu ievade'!$B$6:$I$30,$A11,C$6),NA()) -> 4656.92 | D11: =IFERROR(INDEX('Finanšu datu ievade'!$B$6:$I$30,$A11,D$6),NA()) -> 4974.21 | E11: =IFERROR(INDEX('Finanšu datu ievade'!$B$6:$I$30,$A11,E$6),NA()) -> 5024.11 | F11: =IFERROR(INDEX('Finanšu datu ievade'!$B$6:$I$30,$A11,F$6),NA()) -> 5068.42 | G11: =IFERROR(INDEX('Finanšu datu ievade'!$B$6:$I$30,$A11,G$6),NA()) -> 5546.88 | H11: 9%
A12: =MATCH(B12,'Finanšu datu ievade'!$B$6:$B$30,0) -> 3 | B12: =IF('Galvenās metrikas iestatījumi'!C9="","",'Galvenās metrikas iestatījumi'!C9) -> DARBĪBAS PEĻŅA | C12: =IFERROR(INDEX('Finanšu datu ievade'!$B$6:$I$30,$A12,C$6),NA()) -> 68857.69 | D12: =IFERROR(INDEX('Finanšu datu ievade'!$B$6:$I$30,$A12,D$6),NA()) -> 75643.25 | E12: =IFERROR(INDEX('Finanšu datu ievade'!$B$6:$I$30,$A12,E$6),NA()) -> 76755.26 | F12: =IFERROR(INDEX('Finanšu datu ievade'!$B$6:$I$30,$A12,F$6),NA()) -> 77317.83 | G12: =IFERROR(INDEX('Finanšu datu ievade'!$B$6:$I$30,$A12,G$6),NA()) -> 73425.99 | H12: -5%
B14: Visa metrika (apstrādā pat līdz 25 metrikas vienumiem)
A15: =ROWS($B$15:B15) -> 1 | B15: =IF('Finanšu datu ievade'!B6=0,"",'Finanšu datu ievade'!B6) -> IEŅĒMUMI | C15: =IF(B15="",NA(),IFERROR(INDEX('Finanšu datu ievade'!$B$6:$I$30,$A15,C$6),NA())) -> 142728.38 | D15: =IF(B15="",NA(),IFERROR(INDEX('Finanšu datu ievade'!$B$6:$I$30,$A15,D$6),NA())) -> 150687.46 | E15: =IF(B15="",NA(),IFERROR(INDEX('Finanšu datu ievade'!$B$6:$I$30,$A15,E$6),NA())) -> 165044.56 | F15: =IF(B15="",NA(),IFERROR(INDEX('Finanšu datu ievade'!$B$6:$I$30,$A15,F$6),NA())) -> 180026.63 | G15: =IF(B15="",NA(),IFERROR(INDEX('Finanšu datu ievade'!$B$6:$I$30,$A15,G$6),NA())) -> 180583.88
A16: =ROWS($B$15:B16) -> 2 | B16: =IF('Finanšu datu ievade'!B7=0,"",'Finanšu datu ievade'!B7) -> DARBĪBAS IZMAKSAS | C16: =IF(B16="",NA(),IFERROR(INDEX('Finanšu datu ievade'!$B$6:$I$30,$A16,C$6),NA())) -> 75924.86 | D16: =IF(B16="",NA(),IFERROR(INDEX('Finanšu datu ievade'!$B$6:$I$30,$A16,D$6),NA())) -> 78901.27 | E16: =IF(B16="",NA(),IFERROR(INDEX('Finanšu datu ievade'!$B$6:$I$30,$A16,E$6),NA())) -> 81674.37 | F16: =IF(B16="",NA(),IFERROR(INDEX('Finanšu datu ievade'!$B$6:$I$30,$A16,F$6),NA())) -> 80883.33 | G16: =IF(B16="",NA(),IFERROR(INDEX('Finanšu datu ievade'!$B$6:$I$30,$A16,G$6),NA())) -> 94419.45
A17: =ROWS($B$15:B17) -> 3 | B17: =IF('Finanšu datu ievade'!B8=0,"",'Finanšu datu ievade'!B8) -> DARBĪBAS PEĻŅA | C17: =IF(B17="",NA(),IFERROR(INDEX('Finanšu datu ievade'!$B$6:$I$30,$A17,C$6),NA())) -> 68857.69 | D17: =IF(B17="",NA(),IFERROR(INDEX('Finanšu datu ievade'!$B$6:$I$30,$A17,D$6),NA())) -> 75643.25 | E17: =IF(B17="",NA(),IFERROR(INDEX('Finanšu datu ievade'!$B$6:$I$30,$A17,E$6),NA())) -> 76755.26 | F17: =IF(B17="",NA(),IFERROR(INDEX('Finanšu datu ievade'!$B$6:$I$30,$A17,F$6),NA())) -> 77317.83 | G17: =IF(B17="",NA(),IFERROR(INDEX('Finanšu datu ievade'!$B$6:$I$30,$A17,G$6),NA())) -> 73425.99
A18: =ROWS($B$15:B18) -> 4 | B18: =IF('Finanšu datu ievade'!B9=0,"",'Finanšu datu ievade'!B9) -> NOLIETOJUMS | C18: =IF(B18="",NA(),IFERROR(INDEX('Finanšu datu ievade'!$B$6:$I$30,$A18,C$6),NA())) -> 4656.92 | D18: =IF(B18="",NA(),IFERROR(INDEX('Finanšu datu ievade'!$B$6:$I$30,$A18,D$6),NA())) -> 4974.21 | E18: =IF(B18="",NA(),IFERROR(INDEX('Finanšu datu ievade'!$B$6:$I$30,$A18,E$6),NA())) -> 5024.11 | F18: =IF(B18="",NA(),IFERROR(INDEX('Finanšu datu ievade'!$B$6:$I$30,$A18,F$6),NA())) -> 5068.42 | G18: =IF(B18="",NA(),IFERROR(INDEX('Finanšu datu ievade'!$B$6:$I$30,$A18,G$6),NA())) -> 5546.88
A19: =ROWS($B$15:B19) -> 5 | B19: =IF('Finanšu datu ievade'!B10=0,"",'Finanšu datu ievade'!B10) -> PROCENTI | C19: =IF(B19="",NA(),IFERROR(INDEX('Finanšu datu ievade'!$B$6:$I$30,$A19,C$6),NA())) -> 2893.11 | D19: =IF(B19="",NA(),IFERROR(INDEX('Finanšu datu ievade'!$B$6:$I$30,$A19,D$6),NA())) -> 3136.12 | E19: =IF(B19="",NA(),IFERROR(INDEX('Finanšu datu ievade'!$B$6:$I$30,$A19,E$6),NA())) -> 3148.53 | F19: =IF(B19="",NA(),IFERROR(INDEX('Finanšu datu ievade'!$B$6:$I$30,$A19,F$6),NA())) -> 3338.3 | G19: =IF(B19="",NA(),IFERROR(INDEX('Finanšu datu ievade'!$B$6:$I$30,$A19,G$6),NA())) -> 3789.47
A20: =ROWS($B$15:B20) -> 6 | B20: =IF('Finanšu datu ievade'!B11=0,"",'Finanšu datu ievade'!B11) -> NETO PEĻŅA | C20: =IF(B20="",NA(),IFERROR(INDEX('Finanšu datu ievade'!$B$6:$I$30,$A20,C$6),NA())) -> 55860.81 | D20: =IF(B20="",NA(),IFERROR(INDEX('Finanšu datu ievade'!$B$6:$I$30,$A20,D$6),NA())) -> 59747.95 | E20: =IF(B20="",NA(),IFERROR(INDEX('Finanšu datu ievade'!$B$6:$I$30,$A20,E$6),NA())) -> 61483.59 | F20: =IF(B20="",NA(),IFERROR(INDEX('Finanšu datu ievade'!$B$6:$I$30,$A20,F$6),NA())) -> 66272.1 | G20: =IF(B20="",NA(),IFERROR(INDEX('Finanšu datu ievade'!$B$6:$I$30,$A20,G$6),NA())) -> 67474.85
A21: =ROWS($B$15:B21) -> 7 | B21: =IF('Finanšu datu ievade'!B12=0,"",'Finanšu datu ievade'!B12) -> NODOKLIS | C21: =IF(B21="",NA(),IFERROR(INDEX('Finanšu datu ievade'!$B$6:$I$30,$A21,C$6),NA())) -> 25576.74 | D21: =IF(B21="",NA(),IFERROR(INDEX('Finanšu datu ievade'!$B$6:$I$30,$A21,D$6),NA())) -> 27498.86 | E21: =IF(B21="",NA(),IFERROR(INDEX('Finanšu datu ievade'!$B$6:$I$30,$A21,E$6),NA())) -> 28335.67 | F21: =IF(B21="",NA(),IFERROR(INDEX('Finanšu datu ievade'!$B$6:$I$30,$A21,F$6),NA())) -> 29424.53 | G21: =IF(B21="",NA(),IFERROR(INDEX('Finanšu datu ievade'!$B$6:$I$30,$A21,G$6),NA())) -> 31408.25
A22: =ROWS($B$15:B22) -> 8 | B22: =IF('Finanšu datu ievade'!B13=0,"",'Finanšu datu ievade'!B13) -> PEĻŅA PĒC NODOKĻA | C22: =IF(B22="",NA(),IFERROR(INDEX('Finanšu datu ievade'!$B$6:$I$30,$A22,C$6),NA())) -> 38418.53 | D22: =IF(B22="",NA(),IFERROR(INDEX('Finanšu datu ievade'!$B$6:$I$30,$A22,D$6),NA())) -> 39895.05 | E22: =IF(B22="",NA(),IFERROR(INDEX('Finanšu datu ievade'!$B$6:$I$30,$A22,E$6),NA())) -> 40607.73 | F22: =IF(B22="",NA(),IFERROR(INDEX('Finanšu datu ievade'!$B$6:$I$30,$A22,F$6),NA())) -> 42438.2 | G22: =IF(B22="",NA(),IFERROR(INDEX('Finanšu datu ievade'!$B$6:$I$30,$A22,G$6),NA())) -> 50247.68
A23: =ROWS($B$15:B23) -> 9 | B23: =IF('Finanšu datu ievade'!B14=0,"",'Finanšu datu ievade'!B14) -> 1. METRIKA | C23: =IF(B23="",NA(),IFERROR(INDEX('Finanšu datu ievade'!$B$6:$I$30,$A23,C$6),NA())) -> 13.78 | D23: =IF(B23="",NA(),IFERROR(INDEX('Finanšu datu ievade'!$B$6:$I$30,$A23,D$6),NA())) -> 14.29 | E23: =IF(B23="",NA(),IFERROR(INDEX('Finanšu datu ievade'!$B$6:$I$30,$A23,E$6),NA())) -> 15.57 | F23: =IF(B23="",NA(),IFERROR(INDEX('Finanšu datu ievade'!$B$6:$I$30,$A23,F$6),NA())) -> 16.78 | G23: =IF(B23="",NA(),IFERROR(INDEX('Finanšu datu ievade'!$B$6:$I$30,$A23,G$6),NA())) -> 19.96
A24: =ROWS($B$15:B24) -> 10 | B24: =IF('Finanšu datu ievade'!B15=0,"",'Finanšu datu ievade'!B15) -> 2. METRIKA | C24: =IF(B24="",NA(),IFERROR(INDEX('Finanšu datu ievade'!$B$6:$I$30,$A24,C$6),NA())) -> 19.22 | D24: =IF(B24="",NA(),IFERROR(INDEX('Finanšu datu ievade'!$B$6:$I$30,$A24,D$6),NA())) -> 20.17 | E24: =IF(B24="",NA(),IFERROR(INDEX('Finanšu datu ievade'!$B$6:$I$30,$A24,E$6),NA())) -> 20.48 | F24: =IF(B24="",NA(),IFERROR(INDEX('Finanšu datu ievade'!$B$6:$I$30,$A24,F$6),NA())) -> 21.84 | G24: =IF(B24="",NA(),IFERROR(INDEX('Finanšu datu ievade'!$B$6:$I$30,$A24,G$6),NA())) -> 26.01
A25: =ROWS($B$15:B25) -> 11 | B25: =IF('Finanšu datu ievade'!B16=0,"",'Finanšu datu ievade'!B16) -> 3. METRIKA | C25: =IF(B25="",NA(),IFERROR(INDEX('Finanšu datu ievade'!$B$6:$I$30,$A25,C$6),NA())) -> 21.87 | D25: =IF(B25="",NA(),IFERROR(INDEX('Finanšu datu ievade'!$B$6:$I$30,$A25,D$6),NA())) -> 23.19 | E25: =IF(B25="",NA(),IFERROR(INDEX('Finanšu datu ievade'!$B$6:$I$30,$A25,E$6),NA())) -> 24.67 | F25: =IF(B25="",NA(),IFERROR(INDEX('Finanšu datu ievade'!$B$6:$I$30,$A25,F$6),NA())) -> 26.39 | G25: =IF(B25="",NA(),IFERROR(INDEX('Finanšu datu ievade'!$B$6:$I$30,$A25,G$6),NA())) -> 31.08
A26: =ROWS($B$15:B26) -> 12 | B26: =IF('Finanšu datu ievade'!B17=0,"",'Finanšu datu ievade'!B17) -> 4. METRIKA | C26: =IF(B26="",NA(),IFERROR(INDEX('Finanšu datu ievade'!$B$6:$I$30,$A26,C$6),NA())) -> 12.59 | D26: =IF(B26="",NA(),IFERROR(INDEX('Finanšu datu ievade'!$B$6:$I$30,$A26,D$6),NA())) -> 13.7 | E26: =IF(B26="",NA(),IFERROR(INDEX('Finanšu datu ievade'!$B$6:$I$30,$A26,E$6),NA())) -> 13.76 | F26: =IF(B26="",NA(),IFERROR(INDEX('Finanšu datu ievade'!$B$6:$I$30,$A26,F$6),NA())) -> 14.59 | G26: =IF(B26="",NA(),IFERROR(INDEX('Finanšu datu ievade'!$B$6:$I$30,$A26,G$6),NA())) -> 14.92
A27: =ROWS($B$15:B27) -> 13 | B27: =IF('Finanšu datu ievade'!B18=0,"",'Finanšu datu ievade'!B18) -> 5. METRIKA | C27: =IF(B27="",NA(),IFERROR(INDEX('Finanšu datu ievade'!$B$6:$I$30,$A27,C$6),NA())) -> 0.85 | D27: =IF(B27="",NA(),IFERROR(INDEX('Finanšu datu ievade'!$B$6:$I$30,$A27,D$6),NA())) -> 0.89 | E27: =IF(B27="",NA(),IFERROR(INDEX('Finanšu datu ievade'!$B$6:$I$30,$A27,E$6),NA())) -> 0.91 | F27: =IF(B27="",NA(),IFERROR(INDEX('Finanšu datu ievade'!$B$6:$I$30,$A27,F$6),NA())) -> 1 | G27: =IF(B27="",NA(),IFERROR(INDEX('Finanšu datu ievade'!$B$6:$I$30,$A27,G$6),NA())) -> 1.03
A28: =ROWS($B$15:B28) -> 14 | B28: =IF('Finanšu datu ievade'!B19=0,"",'Finanšu datu ievade'!B19) -> 6. METRIKA | C28: =IF(B28="",NA(),IFERROR(INDEX('Finanšu datu ievade'!$B$6:$I$30,$A28,C$6),NA())) -> 0.27 | D28: =IF(B28="",NA(),IFERROR(INDEX('Finanšu datu ievade'!$B$6:$I$30,$A28,D$6),NA())) -> 0.28 | E28: =IF(B28="",NA(),IFERROR(INDEX('Finanšu datu ievade'!$B$6:$I$30,$A28,E$6),NA())) -> 0.29 | F28: =IF(B28="",NA(),IFERROR(INDEX('Finanšu datu ievade'!$B$6:$I$30,$A28,F$6),NA())) -> 0.3 | G28: =IF(B28="",NA(),IFERROR(INDEX('Finanšu datu ievade'!$B$6:$I$30,$A28,G$6),NA())) -> 0.34
A29: =ROWS($B$15:B29) -> 15 | B29: =IF('Finanšu datu ievade'!B20=0,"",'Finanšu datu ievade'!B20) ->  | C29: =IF(B29="",NA(),IFERROR(INDEX('Finanšu datu ievade'!$B$6:$I$30,$A29,C$6),NA())) ->  | D29: =IF(B29="",NA(),IFERROR(INDEX('Finanšu datu ievade'!$B$6:$I$30,$A29,D$6),NA())) ->  | E29: =IF(B29="",NA(),IFERROR(INDEX('Finanšu datu ievade'!$B$6:$I$30,$A29,E$6),NA())) ->  | F29: =IF(B29="",NA(),IFERROR(INDEX('Finanšu datu ievade'!$B$6:$I$30,$A29,F$6),NA())) ->  | G29: =IF(B29="",NA(),IFERROR(INDEX('Finanšu datu ievade'!$B$6:$I$30,$A29,G$6),NA())) -> 
A30: =ROWS($B$15:B30) -> 16 | B30: =IF('Finanšu datu ievade'!B21=0,"",'Finanšu datu ievade'!B21) ->  | C30: =IF(B30="",NA(),IFERROR(INDEX('Finanšu datu ievade'!$B$6:$I$30,$A30,C$6),NA())) ->  | D30: =IF(B30="",NA(),IFERROR(INDEX('Finanšu datu ievade'!$B$6:$I$30,$A30,D$6),NA())) ->  | E30: =IF(B30="",NA(),IFERROR(INDEX('Finanšu datu ievade'!$B$6:$I$30,$A30,E$6),NA())) ->  | F30: =IF(B30="",NA(),IFERROR(INDEX('Finanšu datu ievade'!$B$6:$I$30,$A30,F$6),NA())) ->  | G30: =IF(B30="",NA(),IFERROR(INDEX('Finanšu datu ievade'!$B$6:$I$30,$A30,G$6),NA())) -> 
A31: =ROWS($B$15:B31) -> 17 | B31: =IF('Finanšu datu ievade'!B22=0,"",'Finanšu datu ievade'!B22) ->  | C31: =IF(B31="",NA(),IFERROR(INDEX('Finanšu datu ievade'!$B$6:$I$30,$A31,C$6),NA())) ->  | D31: =IF(B31="",NA(),IFERROR(INDEX('Finanšu datu ievade'!$B$6:$I$30,$A31,D$6),NA())) ->  | E31: =IF(B31="",NA(),IFERROR(INDEX('Finanšu datu ievade'!$B$6:$I$30,$A31,E$6),NA())) ->  | F31: =IF(B31="",NA(),IFERROR(INDEX('Finanšu datu ievade'!$B$6:$I$30,$A31,F$6),NA())) ->  | G31: =IF(B31="",NA(),IFERROR(INDEX('Finanšu datu ievade'!$B$6:$I$30,$A31,G$6),NA())) -> 
A32: =ROWS($B$15:B32) -> 18 | B32: =IF('Finanšu datu ievade'!B23=0,"",'Finanšu datu ievade'!B23) ->  | C32: =IF(B32="",NA(),IFERROR(INDEX('Finanšu datu ievade'!$B$6:$I$30,$A32,C$6),NA())) ->  | D32: =IF(B32="",NA(),IFERROR(INDEX('Finanšu datu ievade'!$B$6:$I$30,$A32,D$6),NA())) ->  | E32: =IF(B32="",NA(),IFERROR(INDEX('Finanšu datu ievade'!$B$6:$I$30,$A32,E$6),NA())) ->  | F32: =IF(B32="",NA(),IFERROR(INDEX('Finanšu datu ievade'!$B$6:$I$30,$A32,F$6),NA())) ->  | G32: =IF(B32="",NA(),IFERROR(INDEX('Finanšu datu ievade'!$B$6:$I$30,$A32,G$6),NA())) -> 
A33: =ROWS($B$15:B33) -> 19 | B33: =IF('Finanšu datu ievade'!B24=0,"",'Finanšu datu ievade'!B24) ->  | C33: =IF(B33="",NA(),IFERROR(INDEX('Finanšu datu ievade'!$B$6:$I$30,$A33,C$6),NA())) ->  | D33: =IF(B33="",NA(),IFERROR(INDEX('Finanšu datu ievade'!$B$6:$I$30,$A33,D$6),NA())) ->  | E33: =IF(B33="",NA(),IFERROR(INDEX('Finanšu datu ievade'!$B$6:$I$30,$A33,E$6),NA())) ->  | F33: =IF(B33="",NA(),IFERROR(INDEX('Finanšu datu ievade'!$B$6:$I$30,$A33,F$6),NA())) ->  | G33: =IF(B33="",NA(),IFERROR(INDEX('Finanšu datu ievade'!$B$6:$I$30,$A33,G$6),NA())) -> 
A34: =ROWS($B$15:B34) -> 20 | B34: =IF('Finanšu datu ievade'!B25=0,"",'Finanšu datu ievade'!B25) ->  | C34: =IF(B34="",NA(),IFERROR(INDEX('Finanšu datu ievade'!$B$6:$I$30,$A34,C$6),NA())) ->  | D34: =IF(B34="",NA(),IFERROR(INDEX('Finanšu datu ievade'!$B$6:$I$30,$A34,D$6),NA())) ->  | E34: =IF(B34="",NA(),IFERROR(INDEX('Finanšu datu ievade'!$B$6:$I$30,$A34,E$6),NA())) ->  | F34: =IF(B34="",NA(),IFERROR(INDEX('Finanšu datu ievade'!$B$6:$I$30,$A34,F$6),NA())) ->  | G34: =IF(B34="",NA(),IFERROR(INDEX('Finanšu datu ievade'!$B$6:$I$30,$A34,G$6),NA())) -> 
A35: =ROWS($B$15:B35) -> 21 | B35: =IF('Finanšu datu ievade'!B26=0,"",'Finanšu datu ievade'!B26) ->  | C35: =IF(B35="",NA(),IFERROR(INDEX('Finanšu datu ievade'!$B$6:$I$30,$A35,C$6),NA())) ->  | D35: =IF(B35="",NA(),IFERROR(INDEX('Finanšu datu ievade'!$B$6:$I$30,$A35,D$6),NA())) ->  | E35: =IF(B35="",NA(),IFERROR(INDEX('Finanšu datu ievade'!$B$6:$I$30,$A35,E$6),NA())) ->  | F35: =IF(B35="",NA(),IFERROR(INDEX('Finanšu datu ievade'!$B$6:$I$30,$A35,F$6),NA())) ->  | G35: =IF(B35="",NA(),IFERROR(INDEX('Finanšu datu ievade'!$B$6:$I$30,$A35,G$6),NA())) -> 
A36: =ROWS($B$15:B36) -> 22 | B36: =IF('Finanšu datu ievade'!B27=0,"",'Finanšu datu ievade'!B27) ->  | C36: =IF(B36="",NA(),IFERROR(INDEX('Finanšu datu ievade'!$B$6:$I$30,$A36,C$6),NA())) ->  | D36: =IF(B36="",NA(),IFERROR(INDEX('Finanšu datu ievade'!$B$6:$I$30,$A36,D$6),NA())) ->  | E36: =IF(B36="",NA(),IFERROR(INDEX('Finanšu datu ievade'!$B$6:$I$30,$A36,E$6),NA())) ->  | F36: =IF(B36="",NA(),IFERROR(INDEX('Finanšu datu ievade'!$B$6:$I$30,$A36,F$6),NA())) ->  | G36: =IF(B36="",NA(),IFERROR(INDEX('Finanšu datu ievade'!$B$6:$I$30,$A36,G$6),NA())) -> 
A37: =ROWS($B$15:B37) -> 23 | B37: =IF('Finanšu datu ievade'!B28=0,"",'Finanšu datu ievade'!B28) ->  | C37: =IF(B37="",NA(),IFERROR(INDEX('Finanšu datu ievade'!$B$6:$I$30,$A37,C$6),NA())) ->  | D37: =IF(B37="",NA(),IFERROR(INDEX('Finanšu datu ievade'!$B$6:$I$30,$A37,D$6),NA())) ->  | E37: =IF(B37="",NA(),IFERROR(INDEX('Finanšu datu ievade'!$B$6:$I$30,$A37,E$6),NA())) ->  | F37: =IF(B37="",NA(),IFERROR(INDEX('Finanšu datu ievade'!$B$6:$I$30,$A37,F$6),NA())) ->  | G37: =IF(B37="",NA(),IFERROR(INDEX('Finanšu datu ievade'!$B$6:$I$30,$A37,G$6),NA())) -> 
A38: =ROWS($B$15:B38) -> 24 | B38: =IF('Finanšu datu ievade'!B29=0,"",'Finanšu datu ievade'!B29) ->  | C38: =IF(B38="",NA(),IFERROR(INDEX('Finanšu datu ievade'!$B$6:$I$30,$A38,C$6),NA())) ->  | D38: =IF(B38="",NA(),IFERROR(INDEX('Finanšu datu ievade'!$B$6:$I$30,$A38,D$6),NA())) ->  | E38: =IF(B38="",NA(),IFERROR(INDEX('Finanšu datu ievade'!$B$6:$I$30,$A38,E$6),NA())) ->  | F38: =IF(B38="",NA(),IFERROR(INDEX('Finanšu datu ievade'!$B$6:$I$30,$A38,F$6),NA())) ->  | G38: =IF(B38="",NA(),IFERROR(INDEX('Finanšu datu ievade'!$B$6:$I$30,$A38,G$6),NA())) -> 
A39: =ROWS($B$15:B39) -> 25 | B39: =IF('Finanšu datu ievade'!B30=0,"",'Finanšu datu ievade'!B30) ->  | C39: =IF(B39="",NA(),IFERROR(INDEX('Finanšu datu ievade'!$B$6:$I$30,$A39,C$6),NA())) ->  | D39: =IF(B39="",NA(),IFERROR(INDEX('Finanšu datu ievade'!$B$6:$I$30,$A39,D$6),NA())) ->  | E39: =IF(B39="",NA(),IFERROR(INDEX('Finanšu datu ievade'!$B$6:$I$30,$A39,E$6),NA())) ->  | F39: =IF(B39="",NA(),IFERROR(INDEX('Finanšu datu ievade'!$B$6:$I$30,$A39,F$6),NA())) ->  | G39: =IF(B39="",NA(),IFERROR(INDEX('Finanšu datu ievade'!$B$6:$I$30,$A39,G$6),NA())) -> 
